bitfinex/quotes_SOLUSD_20250417
["timestamp","ask_amount","ask_price","bid_price","bid_amount"]
[1744922777582,9.08829583,134.4,134.36,29.74990217]
[1744922777789,1.6476,134.4,134.38,29.74990217]
[1744922778013,6.4494,134.42,134.38,29.74990217]
[1744922778178,6.4494,134.42,134.36,29.74990217]
[1744922778179,29.74990217,134.41,134.36,29.74990217]
[1744922778386,37.18991287,134.41,134.33,0.42648471]
[1744922778590,37.18991287,134.41,134.36,29.74990217]
[1744922778793,7.4400107,134.41,134.36,29.74990217]
[1744922778994,37.18991287,134.41,134.36,29.74990217]
[1744922779395,29.74990217,134.39,134.35,29.74990217]
[1744922779692,37.19110945,134.39,134.35,29.74990217]
[1744922779887,7.44120728,134.39,134.35,29.74990217]
[1744922780206,29.74990217,134.38,134.33,29.74990217]
[1744922780422,29.74990217,134.38,134.34,29.74990217]
[1744922780588,37.19110945,134.39,134.34,29.74990217]
[1744922780786,7.44120728,134.39,134.35,29.74990217]
[1744922781001,7.44120728,134.39,134.36,29.74990217]
[1744922781189,7.44060766,134.4,134.36,29.74990217]
[1744922781387,7.44060766,134.4,134.37,29.74990217]
[1744922781610,33.43960699,134.42,134.39,29.74990217]
[1744922781783,7.43960699,134.42,134.38,29.74990217]
[1744922781981,29.74990217,134.41,134.37,29.74990217]
[1744922782213,37.18950916,134.42,134.37,29.74990217]
[1744922782399,7.43960699,134.42,134.37,29.74990217]
[1744922782587,7.43960699,134.42,134.38,29.74990217]
[1744922782783,37.18950916,134.42,134.37,29.74990217]
[1744922782995,7.43960699,134.42,134.37,29.74990217]
[1744922783204,7.43960699,134.42,134.38,29.74990217]
[1744922783819,29.74990217,134.41,134.36,29.74990217]
[1744922784319,7.43960699,134.42,134.38,29.74990217]
[1744922784516,33.43960699,134.42,134.38,29.74990217]
[1744922784697,63.18950916,134.42,134.37,29.74990217]
[1744922785104,63.18950916,134.42,134.38,29.74990217]
[1744922785522,63.18950916,134.42,134.37,29.74990217]
[1744922785699,37.18950916,134.42,134.37,29.74990217]
[1744922786295,29.74990217,134.41,134.36,29.74990217]
[1744922786821,29.74990217,134.39,134.33,7.44408775]
[1744922787012,29.74990217,134.38,134.34,29.74990217]
[1744922787822,7.44269127,134.36,134.32,45.32990217]
[1744922787999,7.44237069,134.37,134.34,29.74990217]
[1744922789004,9.04445112,134.38,134.34,29.74990217]
[1744922789309,38.79435329,134.38,134.32,23.02489801]
[1744922789511,38.79435329,134.38,134.33,29.74990217]
[1744922789705,9.04445112,134.38,134.34,29.74990217]
[1744922790013,9.04445112,134.38,134.35,29.74990217]
[1744922790512,8.98342961,134.41,134.37,29.74990217]
[1744922790715,8.98342961,134.41,134.33,30.03422531]
[1744922790716,7.44012961,134.41,134.39,29.74990217]
[1744922791013,7.44012961,134.41,134.38,29.74990217]
[1744922791220,55.78983834,134.41,134.36,29.74990217]
[1744922791424,29.74990217,134.39,134.34,29.74990217]
[1744922791726,26.03993617,134.41,134.32,23.02489801]
[1744922791727,37.19003178,134.41,134.36,29.74990217]
[1744922791920,7.44012961,134.41,134.37,29.74990217]
[1744922792627,7.44012961,134.41,134.38,29.74990217]
[1744922793419,7.44012961,134.41,134.37,29.74990217]
[1744922793622,37.19003178,134.41,134.37,29.74990217]
[1744922793917,37.19003178,134.41,134.36,29.74990217]
[1744922794925,37.19003178,134.41,134.35,29.74990217]
[1744922794926,29.74990217,134.4,134.35,29.74990217]
[1744922796028,7.44075857,134.4,134.36,29.74990217]
[1744922796203,7.44075857,134.4,134.35,29.74990217]
[1744922796204,37.19066074,134.4,134.35,29.74990217]
[1744922797314,29.74990217,134.39,134.34,29.74990217]
[1744922797947,26.0,134.42,134.35,29.74990217]
[1744922798135,0.03,134.43,134.39,29.74990217]
[1744922799236,7.46905498,134.43,134.39,29.74990217]
[1744922799737,0.03,134.43,134.42,29.74990217]
[1744922800138,0.03,134.43,134.39,7.44098563]
[1744922800514,0.03,134.43,134.42,29.74990217]
[1744922800936,0.03,134.43,134.42,45.32990217]
[1744922801435,0.03,134.43,134.42,23.01936914]
[1744922801639,0.03,134.43,134.42,52.76927131]
[1744922802013,0.03,134.43,134.42,78.76927131]
[1744922803225,0.03,134.43,134.42,79.19575602]
[1744922803645,0.03,134.43,134.42,78.91143288]
[1744922803820,0.03,134.43,134.42,78.76927131]
[1744922804017,0.03,134.43,134.42,79.19575602]
[1744922804341,1e-08,134.43,134.42,79.19575602]
[1744922805123,1e-08,134.43,134.42,37.18927131]
[1744922805323,1e-08,134.43,134.41,37.1896058]
[1744922805949,1e-08,134.43,134.42,29.74990217]
[1744922806543,1e-08,134.43,134.42,30.17638688]
[1744922806914,1e-08,134.43,134.42,29.74990217]
[1744922807650,1e-08,134.43,134.42,37.18927131]
[1744922807824,1e-08,134.43,134.38,15.58]
[1744922808141,29.74990218,134.43,134.38,52.77123662]
[1744922808514,1e-08,134.43,134.39,29.74990217]
[1744922809248,1e-08,134.43,134.4,29.74990217]
[1744922809555,1e-08,134.43,134.41,29.74990217]
[1744922810343,29.74990218,134.43,134.35,26.14216157]
[1744922810535,29.74990217,134.42,134.38,29.74990217]
[1744922810741,1e-08,134.43,134.38,29.74990217]
[1744922810919,29.74990217,134.42,134.38,29.74990217]
[1744922811429,29.74990217,134.41,134.36,29.74990217]
[1744922811817,29.74990217,134.42,134.37,29.74990217]
[1744922812019,0.03,134.47,134.44,26.0]
[1744922812219,0.03,134.47,134.46,29.74990217]
[1744922813127,0.03,134.47,134.46,18.55530807]
[1744922813328,0.03,134.47,134.46,25.9924641]
[1744922814155,0.03,134.47,134.45,25.99276739]
[1744922814649,0.03,134.47,134.46,18.55530807]
[1744922815155,0.03,134.47,134.46,29.68946282]
[1744922815533,0.03,134.47,134.46,37.12661885]
[1744922816042,0.03,134.51,134.48,22.4]
[1744922816233,13.82694651,134.59,134.56,26.0]
[1744922816421,13.82694651,134.59,134.58,29.68946282]
[1744922816622,43.51640933,134.59,134.55,15.58]
[1744922817355,13.82694651,134.59,134.55,29.68946282]
[1744922817543,43.51640933,134.59,134.54,37.12186748]
[1744922818354,13.82694651,134.59,134.56,29.68946282]
[1744922818551,13.82694651,134.59,134.58,29.68946282]
[1744922819547,13.82694651,134.59,134.58,37.11998741]
[1744922820228,13.82694651,134.59,134.58,37.54647212]
[1744922820749,13.82694651,134.59,134.58,37.11998741]
[1744922821062,13.82694651,134.59,134.58,63.54647212]
[1744922823465,2.5753935,134.72,134.69,26.0]
[1744922823753,2.5753935,134.72,134.71,37.11281669]
[1744922824559,2.5753935,134.72,134.71,37.5393014]
[1744922825642,39.57899586,134.8,134.71,37.5393014]
[1744922825643,6.1602,134.8,134.74,7.42170105]
[1744922825838,6.1602,134.8,134.78,29.68946282]
[1744922826040,1.5149,134.81,134.79,29.68946282]
[1744922826238,6.2066,134.84,134.8,29.68946282]
[1744922826432,6.2066,134.84,134.82,29.68946282]
[1744922826856,35.89606282,134.84,134.8,29.68946282]
[1744922827054,43.31243266,134.84,134.8,29.68946282]
[1744922827253,6.2066,134.84,134.82,29.68946282]
[1744922828042,0.03,134.86,134.83,29.68946282]
[1744922828264,63.13458847,134.86,134.81,29.68946282]
[1744922828564,29.68946282,134.82,134.77,29.68946282]
[1744922828940,29.68946282,134.83,134.78,29.68946282]
[1744922829467,29.68946282,134.81,134.76,29.68946282]
[1744922830151,60.19251735,134.86,134.8,29.68946282]
[1744922830152,0.03,134.86,134.8,29.68946282]
[1744922830346,29.68946282,134.85,134.81,29.68946282]
[1744922830549,29.68946282,134.84,134.77,0.28432314]
[1744922830768,29.68946282,134.84,134.8,29.68946282]
[1744922830964,29.68946282,134.85,134.8,29.68946282]
[1744922831265,33.44510419,134.86,134.8,29.68946282]
[1744922831446,29.68946282,134.84,134.8,29.68946282]
[1744922831671,29.68946282,134.84,134.79,29.68946282]
[1744922831968,29.68946282,134.82,134.78,29.68946282]
[1744922832156,29.68946282,134.83,134.79,29.68946282]
[1744922832353,29.68946282,134.84,134.79,29.68946282]
[1744922832559,29.68946282,134.83,134.78,29.68946282]
[1744922833360,7.41564701,134.85,134.79,29.68946282]
[1744922833566,29.68946282,134.84,134.79,29.68946282]
[1744922834058,37.10510983,134.85,134.8,29.68946282]
[1744922834250,29.68946282,134.84,134.8,29.68946282]
[1744922834465,29.68946282,134.84,134.79,29.68946282]
[1744922834660,29.18946282,134.84,134.8,29.68946282]
[1744922835067,7.41674701,134.83,134.79,29.68946282]
[1744922835266,37.10620983,134.83,134.79,29.68946282]
[1744922836071,37.10620983,134.83,134.78,29.68946282]
[1744922836369,37.10620983,134.83,134.77,0.42648471]
[1744922836370,29.68946282,134.82,134.77,29.68946282]
[1744922836575,29.68946282,134.82,134.76,26.0]
[1744922836949,7.41784734,134.81,134.77,29.68946282]
[1744922837158,7.41784734,134.81,134.78,29.68946282]
[1744922838877,7.41729713,134.82,134.78,29.68946282]
[1744922839565,37.10675995,134.82,134.78,29.68946282]
[1744922840464,37.10675995,134.82,134.77,29.68946282]
[1744922840874,29.68946282,134.8,134.75,15.56]
[1744922841176,29.68946282,134.8,134.75,45.24946282]
[1744922841375,29.68946282,134.8,134.76,29.68946282]
[1744922841553,29.68946282,134.81,134.75,22.9811485]
[1744922841757,55.65000279,134.82,134.77,29.68946282]
[1744922842674,29.68946282,134.81,134.77,29.68946282]
[1744922843766,37.10675995,134.82,134.77,29.68946282]
[1744922843968,7.41729713,134.82,134.78,29.68946282]
[1744922844779,7.41729713,134.82,134.79,29.68946282]
[1744922845078,7.41698549,134.83,134.79,29.68946282]
[1744922845964,7.41698549,134.83,134.78,7.41948347]
[1744922845965,29.68946282,134.82,134.78,29.68946282]
[1744922846762,7.41564701,134.85,134.81,29.68946282]
[1744922847369,37.10510983,134.85,134.81,29.68946282]
[1744922848165,0.03,134.86,134.83,29.68946282]
[1744922848369,0.03,134.86,134.84,29.68946282]
[1744922849579,0.03,134.86,134.85,29.68946282]
[1744922851282,0.03,134.86,134.83,7.41638812]
[1744922851473,0.03,134.86,134.84,37.10554026]
[1744922851785,0.03,134.86,134.85,29.68946282]
[1744922852081,0.03,134.86,134.84,37.10554026]
[1744922853085,0.03,134.86,134.85,29.68946282]
[1744922853886,0.03,134.86,134.84,29.68946282]
[1744922854091,29.68946282,134.85,134.8,15.9]
[1744922854268,29.68946282,134.83,134.78,37.10871961]
[1744922854469,29.68946282,134.84,134.79,29.68946282]
[1744922854781,29.68946282,134.82,134.78,7.41925679]
[1744922855085,29.68946282,134.83,134.78,37.10871961]
[1744922856277,8.2764,134.85,134.78,37.10871961]
[1744922856477,29.68946282,134.83,134.79,29.68946282]
[1744922856675,29.68946282,134.84,134.79,29.68946282]
[1744922857267,37.10666128,134.83,134.79,29.68946282]
[1744922857667,37.10666128,134.83,134.75,29.68946282]
[1744922857873,29.68946282,134.79,134.73,0.063]
[1744922858076,29.68946282,134.79,134.74,29.68946282]
[1744922858790,29.68946282,134.81,134.76,29.68946282]
[1744922859096,25.95906599,134.83,134.74,29.68946282]
[1744922859097,29.68946282,134.79,134.74,29.68946282]
[1744922859399,29.68946282,134.78,134.73,29.75246282]
[1744922859593,29.68946282,134.77,134.73,0.063]
[1744922859778,29.68946282,134.77,134.73,29.75246282]
[1744922860093,29.68946282,134.77,134.73,0.063]
[1744922860583,29.68946282,134.75,134.73,0.063]
[1744922861388,7.42170105,134.74,134.73,0.063]
[1744922861904,37.11067913,134.75,134.73,0.063]
[1744922862205,29.68946282,134.76,134.73,0.063]
[1744922863276,24.0825,134.78,134.73,0.063]
[1744922863277,53.77196282,134.78,134.73,29.75246282]
[1744922863476,37.87196282,134.78,134.73,29.75246282]
[1744922863693,37.87196282,134.78,134.75,29.68946282]
[1744922863694,8.1825,134.78,134.75,29.68946282]
[1744922864209,29.68946282,134.81,134.76,29.68946282]
[1744922864495,29.68946282,134.79,134.73,0.063]
[1744922864676,29.68946282,134.79,134.74,29.68946282]
[1744922865179,7.41949844,134.78,134.74,29.68946282]
[1744922865599,7.41949844,134.78,134.75,29.68946282]
[1744922865807,29.68946282,134.82,134.77,29.68946282]
[1744922866505,37.10675995,134.82,134.77,29.68946282]
[1744922866889,18.54167009,134.84,134.73,41.94062287]
[1744922866890,7.41564701,134.85,134.81,29.68946282]
[1744922867204,0.03,134.86,134.84,29.68946282]
[1744922867383,0.03,134.86,134.83,29.68946282]
[1744922869304,0.03,134.86,134.83,7.41662908]
[1744922869504,0.03,134.86,134.85,29.68946282]
[1744922870407,0.03,134.86,134.84,29.68946282]
[1744922870901,0.03,134.86,134.85,37.10510983]
[1744922872704,0.03,134.86,134.85,37.53159454]
[1744922875909,0.03,134.86,134.85,37.2472714]
[1744922876087,0.03,134.86,134.85,37.53159454]
[1744922877688,8.1547,134.97,134.89,26.0]
[1744922877907,37.84416282,134.97,134.92,29.68946282]
[1744922878410,29.68946282,134.96,134.91,29.68946282]
[1744922878793,29.68946282,134.94,134.88,15.7]
[1744922878987,29.68946282,134.95,134.9,29.68946282]
[1744922879187,7.41032498,134.95,134.91,29.68946282]
[1744922879410,37.0997878,134.95,134.9,29.68946282]
[1744922880217,0.03,134.92,134.9,29.68946282]
[1744922882298,0.03,134.92,134.85,29.72167924]
[1744922882299,29.68946282,134.91,134.83,24.42282125]
[1744922882614,29.68946282,134.89,134.84,29.68946282]
[1744922883983,7.41399762,134.88,134.84,29.68946282]
[1744922884487,29.68946282,134.86,134.82,29.68946282]
[1744922884687,7.41399762,134.88,134.83,29.68946282]
[1744922884688,37.10346044,134.88,134.83,29.68946282]
[1744922885516,29.68946282,134.87,134.82,29.68946282]
[1744922885690,7.41509713,134.86,134.83,29.68946282]
[1744922886518,7.41509713,134.86,134.82,29.68946282]
[1744922886702,7.41509713,134.86,134.83,29.68946282]
[1744922886901,7.41476792,134.87,134.83,29.68946282]
[1744922887511,37.10423074,134.87,134.83,29.68946282]
[1744922888114,7.41344799,134.89,134.84,29.68946282]
[1744922888414,15.4795907,134.92,134.87,29.68946282]
[1744922888603,45.16905352,134.92,134.88,29.68946282]
[1744922890610,45.16905352,134.92,134.87,29.68946282]
[1744922891022,45.16905352,134.92,134.88,29.68946282]
[1744922891209,15.4795907,134.92,134.88,29.68946282]
[1744922891415,8.0676,134.92,134.89,29.68946282]
[1744922893001,0.03,134.92,134.9,29.68946282]
[1744922893303,0.03,134.98,134.91,98.86111168]
[1744922893606,0.03,134.98,134.97,29.68946282]
[1744922895398,0.03,134.98,134.97,37.09851668]
[1744922895600,0.03,134.98,134.97,37.52500139]
[1744922898098,0.03,134.98,134.97,102.17465025]
[1744922898607,1.0,135.0,134.99,65.07613357]
[1744922898806,7.9581,135.06,134.99,94.76559639]
[1744922899019,7.40310121,135.08,135.05,29.68946282]
[1744922899236,8.072,135.12,135.07,29.68946282]
[1744922899417,37.76146282,135.12,135.08,29.68946282]
[1744922899624,15.47299244,135.12,135.09,29.68946282]
[1744922899803,7.40099244,135.12,135.09,29.68946282]
[1744922900004,7.40043659,135.13,135.1,29.68946282]
[1744922900515,7.40043659,135.13,135.09,29.68946282]
[1744922900920,7.40043659,135.13,135.1,29.68946282]
[1744922901122,7.39918608,135.15,135.1,29.68946282]
[1744922901315,29.68946282,135.14,135.1,29.68946282]
[1744922901725,7.39918608,135.15,135.1,29.68946282]
[1744922902027,29.68946282,135.14,135.1,29.68946282]
[1744922902235,29.68946282,135.14,135.07,23.78337284]
[1744922902236,7.39918608,135.15,135.11,29.68946282]
[1744922902408,7.39918608,135.15,135.09,29.68946282]
[1744922902603,29.68946282,135.13,135.09,29.68946282]
[1744922902815,29.68946282,135.13,135.08,29.68946282]
[1744922903111,7.40084648,135.12,135.08,29.68946282]
[1744922905431,29.68946282,135.12,135.08,29.68946282]
[1744922905616,25.8971513,135.15,135.08,29.68946282]
[1744922905819,29.68946282,135.11,135.07,46.06946282]
[1744922906331,29.68946282,135.08,135.02,16.38]
[1744922906503,29.68946282,135.06,135.02,46.06946282]
[1744922906705,29.68946282,135.07,135.02,46.06946282]
[1744922907838,29.68946282,135.07,135.02,7.40603685]
[1744922908004,26.0,135.06,134.96,9.18427211]
[1744922908208,26.0,135.06,134.92,17.1]
[1744922908209,29.68946282,135.03,134.92,17.1]
[1744922908423,26.0,135.04,134.95,29.68946282]
[1744922908624,29.68946282,135.01,134.96,29.68946282]
[1744922908941,26.0,135.04,134.98,29.68946282]
[1744922909110,29.68946282,135.03,134.98,29.68946282]
[1744922909431,7.40631017,135.02,134.98,29.68946282]
[1744922909617,29.68946282,135.04,135.0,29.68946282]
[1744922910021,29.68946282,135.02,134.98,29.68946282]
[1744922910221,29.68946282,135.02,134.97,46.78946282]
[1744922910828,25.91632727,135.05,134.97,46.78946282]
[1744922910829,29.68946282,135.03,134.98,29.68946282]
[1744922911420,7.40631017,135.02,134.98,29.68946282]
[1744922911640,29.68946282,134.99,134.92,20.0]
[1744922911839,6.6139,135.01,134.95,29.68946282]
[1744922912139,29.68946282,134.99,134.94,29.68946282]
[1744922912329,29.68946282,134.96,134.92,29.68946282]
[1744922912633,29.68946282,134.96,134.91,46.78946282]
[1744922912810,29.68946282,134.95,134.91,17.1]
[1744922913010,6.6139,135.01,134.92,29.68946282]
[1744922913208,29.68946282,134.97,134.92,29.68946282]
[1744922913429,7.4074074,135.0,134.93,29.68946282]
[1744922913630,29.68946282,134.98,134.93,29.68946282]
[1744922914421,29.68946282,134.99,134.95,29.68946282]
[1744922914735,7.4074074,135.0,134.96,29.68946282]
[1744922914934,29.68946282,134.99,134.94,29.68946282]
[1744922915135,29.68946282,134.96,134.91,46.78946282]
[1744922915326,7.4074074,135.0,134.95,29.68946282]
[1744922915523,37.09687022,135.0,134.95,29.68946282]
[1744922915841,7.4074074,135.0,134.96,29.68946282]
[1744922916820,14.02089282,135.01,134.97,29.68946282]
[1744922917020,43.71035564,135.01,134.96,29.68946282]
[1744922917220,29.68946282,135.0,134.95,29.68946282]
[1744922917434,29.68946282,135.0,134.96,29.68946282]
[1744922917638,14.02089282,135.01,134.96,29.68946282]
[1744922917842,29.68946282,135.0,134.96,29.68946282]
[1744922918018,37.09741852,135.0,134.96,29.68946282]
[1744922918633,37.09741852,135.0,134.95,29.68946282]
[1744922918837,7.4079557,135.0,134.96,29.68946282]
[1744922919039,37.09741852,135.0,134.96,29.68946282]
[1744922919246,7.4079557,135.0,134.96,29.68946282]
[1744922919452,14.02093024,135.01,134.97,29.68946282]
[1744922919743,7.40703024,135.01,134.97,29.68946282]
[1744922919947,7.40703024,135.01,134.98,29.68946282]
[1744922920317,29.68946282,135.0,134.96,29.68946282]
[1744922920637,29.68946282,134.97,134.91,17.1]
[1744922920843,29.68946282,134.95,134.91,46.78946282]
[1744922921046,6.5082,134.97,134.91,17.1]
[1744922921242,29.68946282,134.95,134.91,17.1]
[1744922921617,29.68946282,134.94,134.89,29.68946282]
[1744922921844,29.68946282,134.91,134.86,17.163]
[1744922922036,29.68946282,134.92,134.87,29.68946282]
[1744922922234,29.68946282,134.93,134.88,37.10297255]
[1744922922435,37.10016387,134.94,134.89,29.68946282]
[1744922922635,37.10016387,134.94,134.88,7.41350973]
[1744922922636,29.68946282,134.93,134.88,29.68946282]
[1744922922942,29.68946282,134.92,134.87,37.10377941]
[1744922923147,29.68946282,134.91,134.86,0.063]
[1744922923457,29.68946282,134.9,134.86,0.063]
[1744922923626,29.68946282,134.9,134.86,7.47798998]
[1744922923829,25.93745368,134.94,134.87,29.68946282]
[1744922924042,29.68946282,134.92,134.88,29.68946282]
[1744922924739,29.68946282,134.92,134.88,37.10345881]
[1744922925042,7.41095336,134.94,134.9,29.68946282]
[1744922925346,37.10041618,134.94,134.9,29.68946282]
[1744922925649,38.69498327,134.95,134.9,29.68946282]
[1744922925836,9.00552045,134.95,134.89,29.68946282]
[1744922926144,29.68946282,134.94,134.89,29.68946282]
[1744922926329,37.10025638,134.94,134.89,37.10260911]
[1744922926752,29.68946282,134.93,134.89,7.41314629]
[1744922928145,37.10025638,134.94,134.89,37.10260911]
[1744922929145,29.68946282,134.93,134.88,29.68946282]
[1744922929350,29.68946282,134.92,134.88,29.68946282]
[1744922929538,29.68946282,134.93,134.89,29.68946282]
[1744922930454,29.68946282,134.94,134.89,29.68946282]
[1744922930761,1.5953,134.95,134.91,29.68946282]
[1744922930926,7.40878939,134.98,134.94,29.68946282]
[1744922931133,37.77736282,135.0,134.95,29.68946282]
[1744922931341,37.77736282,135.0,134.96,29.68946282]
[1744922931540,8.0879,135.0,134.96,29.68946282]
[1744922931947,29.68946282,134.99,134.94,29.68946282]
[1744922932134,29.68946282,134.98,134.93,29.68946282]
[1744922932543,29.68946282,134.97,134.92,37.1012624]
[1744922932849,29.68946282,134.98,134.93,29.68946282]
[1744922933252,37.09816979,134.98,134.93,37.10047987]
[1744922933554,29.68946282,134.98,134.93,37.10047987]
[1744922933931,45.18497726,135.0,134.95,29.68946282]
[1744922934250,29.68946282,134.98,134.94,29.68946282]
[1744922935451,15.49551444,135.0,134.94,37.1000862]
[1744922935650,29.68946282,134.99,134.94,37.1000862]
[1744922936037,7.40576168,135.03,134.96,29.68946282]
[1744922936250,29.68946282,135.02,134.97,29.68946282]
[1744922936534,29.68946282,135.02,134.94,7.41062338]
[1744922936535,29.68946282,135.01,134.96,29.68946282]
[1744922936951,29.68946282,135.0,134.95,29.68946282]
[1744922937349,29.68946282,134.99,134.94,37.1000862]
[1744922937851,29.68946282,134.98,134.93,37.10044794]
[1744922938739,37.09744966,134.99,134.94,29.68946282]
[1744922939139,29.68946282,134.99,134.93,7.41098512]
[1744922939453,29.68946282,134.99,134.94,29.68946282]
[1744922939864,37.09749879,134.99,134.94,37.10001146]
[1744922940064,29.68946282,134.97,134.92,29.68946282]
[1744922940266,29.68946282,134.96,134.91,46.46946282]
[1744922940861,29.68946282,134.96,134.92,29.68946282]
[1744922941246,37.09910576,134.96,134.92,29.68946282]
[1744922941451,37.09910576,134.96,134.91,53.88134096]
[1744922942261,7.40927227,134.97,134.91,16.78]
[1744922942449,29.68946282,134.96,134.92,29.68946282]
[1744922943667,37.09918813,134.96,134.92,29.68946282]
[1744922943864,29.68946282,134.94,134.88,7.41352019]
[1744922944053,29.68946282,134.89,134.87,16.78]
[1744922944279,29.68946282,134.89,134.86,7.4779941]
[1744922944564,26.0,134.95,134.86,7.47809196]
[1744922944772,29.68946282,134.89,134.86,7.47809196]
[1744922945258,29.68946282,134.9,134.86,7.47809196]
[1744922945759,29.68946282,134.89,134.86,7.47809196]
[1744922946262,29.68946282,134.89,134.86,0.063]
[1744922947443,29.68946282,134.88,134.86,0.063]
[1744922949467,44.79374304,134.89,134.86,0.063]
[1744922949673,37.10240216,134.9,134.86,0.063]
[1744922950471,29.68946282,134.9,134.86,0.063]
[1744922950668,8.1411,134.92,134.88,29.68946282]
[1744922951575,8.1411,134.92,134.88,37.10295472]
[1744922952371,37.10035989,134.94,134.9,29.68946282]
[1744922952560,7.41089707,134.94,134.9,29.68946282]
[1744922952760,29.68946282,134.96,134.92,29.68946282]
[1744922953066,29.68946282,134.97,134.93,29.68946282]
[1744922953263,29.68946282,134.97,134.9,0.42648471]
[1744922953453,29.68946282,134.97,134.92,29.68946282]
[1744922953874,37.09856064,134.97,134.92,37.10097678]
[1744922954764,37.09856064,134.97,134.9,37.10197981]
[1744922954765,29.68946282,134.95,134.9,37.10197981]
[1744922954968,29.68946282,134.96,134.91,29.68946282]
[1744922955265,37.09856064,134.97,134.92,29.68946282]
[1744922955760,29.68946282,134.97,134.93,7.41125027]
[1744922955961,37.09819048,134.98,134.93,37.10071309]
[1744922956150,8.0426,134.99,134.95,29.68946282]
[1744922956351,15.49106168,135.03,134.98,29.68946282]
[1744922956784,29.68946282,135.02,134.97,29.68946282]
[1744922957273,29.68946282,134.98,134.95,16.8]
[1744922957482,29.68946282,134.97,134.92,37.10108388]
[1744922957779,29.68946282,134.97,134.93,29.68946282]
[1744922958656,37.09817438,134.98,134.93,29.68946282]
[1744922958976,55.68946282,135.0,134.95,29.68946282]
[1744922959169,29.68946282,134.99,134.95,29.68946282]
[1744922959576,29.68946282,134.99,134.94,29.68946282]
[1744922959873,26.0,135.0,134.94,7.41070105]
[1744922960079,29.68946282,134.98,134.94,7.41070105]
[1744922961257,18.4294912,134.98,134.93,18.4294912]
[1744922961951,8.0853,135.03,134.95,18.4294912]
[1744922962176,18.4294912,135.02,134.98,18.4294912]
[1744922962679,18.4294912,135.01,134.93,0.42648471]
[1744922962851,18.4294912,134.98,134.94,18.4294912]
[1744922963063,18.4294912,134.98,134.93,18.4294912]
[1744922963264,18.4294912,134.98,134.94,18.4294912]
[1744922963972,7.40833288,134.99,134.95,18.4294912]
[1744922964191,25.83782408,134.99,134.94,18.4294912]
[1744922964490,7.40833288,134.99,134.95,18.4294912]
[1744922964669,25.83782408,134.99,134.94,18.4294912]
[1744922965174,25.83782408,134.99,134.94,25.84008172]
[1744922965600,7.40833288,134.99,134.96,18.4294912]
[1744922966105,25.83580137,135.02,134.97,18.4294912]
[1744922966980,18.4294912,135.01,134.97,18.4294912]
[1744922967290,25.83580137,135.02,134.97,18.4294912]
[1744922967485,18.4294912,135.01,134.96,18.4294912]
[1744922967691,18.4294912,135.0,134.96,18.4294912]
[1744922967877,18.4294912,135.01,134.96,18.4294912]
[1744922968591,7.4074074,135.0,134.96,18.4294912]
[1744922969393,18.4294912,135.01,134.96,25.83901519]
[1744922969586,18.4294912,135.01,134.97,18.4294912]
[1744922969891,18.4294912,135.01,134.96,25.83901519]
[1744922970283,18.4294912,135.0,134.96,18.4294912]
[1744922970486,18.4294912,135.0,134.96,25.83902454]
[1744922970889,25.83715296,135.0,134.96,25.83902454]
[1744922971095,25.83715296,135.0,134.96,18.4294912]
[1744922971696,7.40766176,135.0,134.96,18.4294912]
[1744922971881,25.83715296,135.0,134.96,18.4294912]
[1744922972082,18.4294912,134.97,134.91,35.61484743]
[1744922972278,18.4294912,134.97,134.93,18.4294912]
[1744922972478,18.4294912,134.96,134.92,18.4294912]
[1744922973376,25.83949306,134.96,134.92,18.4294912]
[1744922974188,25.83949306,134.96,134.91,42.64172059]
[1744922974510,7.41000186,134.96,134.91,24.21221029]
[1744922974672,25.83949306,134.96,134.91,42.64170149]
[1744922976391,25.8398572,134.95,134.91,16.8]
[1744922976604,18.4294912,134.94,134.89,7.41317299]
[1744922976891,18.4294912,134.9,134.86,0.063]
[1744922977197,18.4294912,134.88,134.86,0.063]
[1744922977403,18.4294912,134.87,134.86,0.063]
[1744922978213,8.2132,134.9,134.86,0.063]
[1744922978510,8.2132,134.9,134.86,25.90756643]
[1744922978705,34.05572084,134.9,134.86,18.4924912]
[1744922978911,34.05572084,134.9,134.86,0.063]
[1744922979206,18.4294912,134.89,134.86,0.063]
[1744922979507,18.4294912,134.87,134.86,0.063]
[1744922980078,15.62622964,134.9,134.86,0.063]
[1744922980276,18.4294912,134.88,134.86,0.063]
[1744922981282,34.05572084,134.9,134.86,0.063]
[1744922982191,18.4294912,134.89,134.86,0.063]
[1744922982395,18.4294912,134.88,134.86,0.063]
[1744922982593,63.07914006,134.87,134.86,0.063]
[1744922983681,44.4294912,134.87,134.86,0.063]
[1744922984306,51.84403854,134.87,134.86,0.063]
[1744922985097,25.84403854,134.87,134.86,0.063]
[1744922986107,51.84403854,134.87,134.86,0.063]
[1744922989034,25.84403854,134.87,134.86,0.063]